bitfinex-derivatives/quotes_BNBF0:USTF0_20250425
["timestamp","ask_amount","ask_price","bid_price","bid_amount"]
[1745618490043,0.29003263,601.1,599.2,0.30593571]
[1745618490243,0.29003263,601.1,599.21,0.30593571]
[1745618490442,0.29003263,601.1,599.22,0.30593571]
[1745618490742,0.29003263,601.1,599.23,0.30593571]
[1745618490943,0.29003263,601.1,599.18,0.30593571]
[1745618491145,0.29003263,601.1,599.19,0.30593571]
[1745618491344,0.29003263,601.1,599.17,0.29003263]
[1745618491546,0.29003263,601.1,599.18,0.30593545]
[1745618491845,1.26926478,601.12,599.18,0.30593545]
[1745618492039,1.26926478,601.12,599.06,0.30593545]
[1745618492244,0.2900145,601.09,599.17,0.2900145]
[1745618492445,0.2900145,601.09,599.18,0.30593545]
[1745618492747,0.2900145,601.09,599.19,0.30593545]
[1745618493046,0.2900145,601.09,599.2,0.30593545]
[1745618493241,0.2900145,601.09,599.05,0.30593545]
[1745618493449,0.2900145,601.09,599.06,0.30593214]
[1745618493641,0.2900145,601.09,599.06,0.29003021]
[1745618493845,0.2900145,601.09,599.07,0.30593214]
[1745618494848,1.26926478,601.59,599.07,0.30593214]
[1745618495151,0.289971,601.08,599.06,0.289971]
[1745618495350,0.289971,601.08,599.07,0.30593214]
[1745618495547,1.26926478,601.59,599.07,0.30593214]
[1745618496751,0.289971,601.58,599.07,0.30593214]
[1745618497853,1.26926478,601.59,599.07,0.30593214]
[1745618498152,1.26926478,601.56,599.08,0.30593214]
[1745618498351,1.26926478,601.56,598.74,0.30593214]
[1745618498552,1.26926478,601.56,598.75,0.30593214]
[1745618498752,0.2900145,601.55,599.07,0.2900145]
[1745618499052,0.2900145,601.55,599.08,0.30593214]
[1745618499253,0.2900145,601.55,598.74,0.30593214]
[1745618499453,0.2900145,601.55,598.75,0.30593214]
[1745618499654,0.2900145,601.55,598.76,0.30593214]
[1745618499955,0.2900145,601.55,598.77,0.30593214]
[1745618500156,0.2900145,601.55,598.78,0.30592098]
[1745618500353,0.2900145,601.55,598.79,0.30592098]
[1745618500655,0.2900145,601.55,598.8,0.30592098]
[1745618500955,1.26926478,601.56,598.81,0.30592098]
[1745618501155,1.26926478,601.56,598.82,0.30592098]
[1745618501356,0.2900145,601.55,598.83,0.30592098]
[1745618501550,0.2900145,601.55,598.84,0.30592098]
[1745618501856,0.2900145,601.55,598.85,0.30592153]
[1745618502052,0.2900145,601.55,598.86,0.30592153]
[1745618502257,0.2900145,601.55,598.87,0.30592153]
[1745618502456,0.2900145,601.55,598.88,0.30592153]
[1745618502650,0.2900145,601.55,598.89,0.30592153]
[1745618502853,0.2900145,601.55,598.9,0.30592153]
[1745618503056,0.2900145,601.55,598.91,0.30592153]
[1745618503256,0.2900145,601.55,598.92,0.30592153]
[1745618503457,0.2900145,601.55,598.93,0.30592098]
[1745618503657,1.26926478,601.16,599.03,1.0591997]
[1745618503857,1.26926478,601.16,599.04,0.30592098]
[1745618504051,1.26926478,601.16,599.05,0.30592098]
[1745618504256,1.26926478,601.16,599.06,0.30592098]
[1745618504461,1.26926478,601.16,599.03,1.0591997]
[1745618504462,1.26926478,601.16,599.07,0.30592098]
[1745618504656,0.29002659,601.15,599.08,0.30592098]
[1745618504856,0.29002659,601.15,599.09,0.30592098]
[1745618505157,0.29002659,601.15,599.1,0.30592368]
[1745618505456,0.29002659,601.15,599.11,0.30592368]
[1745618505651,0.29002659,601.15,599.03,1.0591997]
[1745618505652,0.29002659,601.15,599.12,0.30592368]
[1745618505852,0.29002659,601.15,599.13,0.30592368]
[1745618506152,0.29002659,601.15,599.14,0.30592368]
[1745618506459,1.55929137,601.15,599.15,0.30592368]
[1745618506756,1.55929137,601.15,599.04,1.0591997]
[1745618506952,1.26926478,601.15,599.05,0.30594348]
[1745618507154,1.26926478,601.15,599.06,0.30594348]
[1745618507357,1.26926478,601.15,599.07,0.30594348]
[1745618507557,0.29003625,601.14,599.08,0.30594348]
[1745618507856,0.29003625,601.14,599.09,0.30594348]
[1745618508057,0.29003625,601.14,599.1,0.30594348]
[1745618508258,0.29003625,601.14,599.11,0.30594348]
[1745618508458,0.29003625,601.14,599.05,0.30594348]
[1745618508658,0.29003625,601.14,599.06,0.30594348]
[1745618508856,0.29003625,601.14,599.07,0.30594348]
[1745618509055,0.29003625,601.14,599.08,0.30594348]
[1745618509353,0.29003625,601.14,599.09,0.30594348]
[1745618509557,0.29003625,601.14,599.1,0.30594348]
[1745618509853,0.29003625,601.14,598.95,0.29003625]
[1745618509854,1.26926478,601.19,599.11,0.30594348]
[1745618510058,1.26926478,601.19,599.12,0.30594348]
[1745618510254,1.26926478,601.19,598.94,0.30594348]
[1745618510452,1.26926478,601.19,598.95,0.30594348]
[1745618510657,0.29004472,601.18,599.02,0.29004472]
[1745618510959,1.5593095,601.18,599.03,0.30594348]
[1745618511154,1.5593095,601.18,599.04,0.30594348]
[1745618511355,1.5593095,601.18,599.05,0.30594348]
[1745618511553,1.5593095,601.18,599.06,0.30594348]
[1745618511758,1.5593095,601.18,599.07,0.3059566]
[1745618511953,1.5593095,601.18,599.08,0.3059566]
[1745618512154,1.5593095,601.18,599.04,0.3059566]
[1745618512353,1.5593095,601.18,599.05,0.3059566]
[1745618512560,1.5593095,601.18,599.06,0.3059566]
[1745618512758,1.5593095,601.18,599.07,0.3059566]
[1745618512959,1.5593095,601.18,599.03,0.29004472]
[1745618512960,1.26926478,601.18,599.08,0.3059566]
[1745618513260,1.26926478,601.19,598.9,1.0591997]
[1745618513560,0.29004472,601.17,599.05,0.29004472]
[1745618513859,0.29004472,601.17,599.06,0.30595673]
[1745618514159,0.29004472,601.17,599.07,0.30595673]
[1745618514360,0.29004472,601.17,599.08,0.30595673]
[1745618514554,0.29004472,601.17,599.09,0.30595673]
[1745618514756,0.29004472,601.17,598.91,0.30595673]
[1745618514954,0.29004472,601.17,599.07,0.29004834]
[1745618515255,0.29004472,601.17,598.92,0.30595673]
[1745618515256,0.29004472,601.17,599.08,0.30595673]
[1745618515459,0.29004472,601.17,599.09,0.30595673]
[1745618515760,0.29004472,601.17,599.1,0.30595673]
[1745618515959,1.26926478,601.22,599.11,0.30595673]
[1745618516159,1.26926478,601.22,599.12,0.30595673]
[1745618516360,0.29004472,601.21,599.13,0.30595673]
[1745618516559,0.29004472,601.21,599.14,0.30595673]
[1745618516761,0.29004472,601.21,599.15,0.30595673]
[1745618516962,0.29004472,601.21,599.16,0.30595673]
[1745618517261,1.26926478,601.17,599.17,0.30595673]
[1745618517457,1.26926478,601.17,599.18,0.30595673]
[1745618517661,1.26926478,601.17,599.19,0.30595673]
[1745618517859,1.26926478,601.17,599.2,0.30595673]
[1745618518058,1.26926478,601.17,599.21,0.30595673]
[1745618518361,1.26926478,601.17,599.22,0.30595673]
[1745618518565,1.26926478,601.17,599.23,0.30595673]
[1745618518763,1.26926478,601.17,599.24,0.30595673]
[1745618519063,1.26926478,601.17,599.25,0.30595673]
[1745618519263,0.29001208,601.16,599.26,0.30595673]
[1745618519562,0.29001208,601.16,599.27,0.30595673]
[1745618519760,0.29001208,601.16,599.21,0.30595673]
[1745618520058,0.29001208,601.16,599.22,0.30595673]
[1745618520257,0.29001208,601.16,599.23,0.30595673]
[1745618520460,0.29001208,601.16,599.21,0.30595673]
[1745618520657,0.29001208,601.16,599.22,0.30595673]
[1745618520862,0.29001208,601.16,599.21,0.30595673]
[1745618521064,0.29001208,601.16,599.2,1.149]
[1745618521263,0.29001208,601.16,599.21,0.30596326]
[1745618521659,1.26926478,601.02,599.21,0.30596326]
[1745618523167,0.29003021,601.01,599.21,0.30596326]
[1745618524064,0.29003021,601.01,599.2,1.149]
[1745618524261,0.29003021,601.01,599.21,0.305956]
[1745618527966,1.26926478,601.36,599.21,0.305956]
[1745618529172,0.28998913,601.35,599.21,0.305956]
[1745618530670,0.28998913,601.35,599.22,0.30595491]
[1745618530875,1.26926478,601.39,599.21,0.30595491]
[1745618531075,1.26926478,601.39,599.22,0.30595491]
[1745618531276,1.26926478,601.39,599.23,0.30595491]
[1745618531477,1.26926478,601.14,599.21,0.30595491]
[1745618531777,1.26926478,601.14,599.22,0.30595491]
[1745618531972,1.26926478,601.14,599.21,0.30595491]
[1745618532173,0.29001571,601.13,599.21,0.30595491]
[1745618532377,0.29001571,601.13,599.22,0.30595702]
[1745618532676,0.29001571,601.13,599.2,1.43901571]
[1745618532677,0.29001571,601.13,599.23,0.30595702]
[1745618532972,0.29001571,601.13,599.21,0.30595702]
[1745618533176,0.29001571,601.13,599.22,0.30595702]
[1745618533377,0.29001571,601.13,599.21,0.30595702]
[1745618533572,0.29001571,601.13,599.22,0.30595702]
[1745618533876,1.26926478,601.3,599.23,0.30595702]
[1745618534077,1.26926478,601.3,599.21,0.30595702]
[1745618534778,0.28999638,601.29,599.21,0.30595702]
[1745618535479,0.28999638,601.29,599.2,1.43899638]
[1745618535676,0.28999638,601.29,599.21,0.30596266]
[1745618535983,1.55926116,601.29,599.21,0.30596266]
[1745618536883,1.26926478,601.29,599.21,0.30596266]
[1745618537685,0.28999758,601.28,599.21,0.30596266]
[1745618537885,1.26926478,601.22,599.21,0.30596266]
[1745618538784,1.26926478,601.22,599.2,1.43899758]
[1745618538985,1.26926478,601.22,599.21,0.30596196]
[1745618540287,1.26926478,601.2,599.21,0.30596196]
[1745618542085,1.26926478,601.2,599.2,1.43899758]
[1745618542285,1.26926478,601.2,599.21,0.30598191]
[1745618542986,1.26926478,601.1,599.21,0.30598191]
[1745618543781,0.29003021,601.09,599.21,0.30598191]
[1745618543980,0.29003021,601.09,599.22,0.30598191]
[1745618544286,0.29003021,601.09,599.23,0.30598191]
[1745618544481,0.29003021,601.09,599.21,0.30598191]
[1745618544682,0.29003021,601.09,599.22,0.30598191]
[1745618544986,0.29003021,601.09,599.23,0.30598191]
[1745618545182,0.29003021,601.09,599.21,0.30598191]
[1745618545383,1.26926478,600.99,599.22,0.30598191]
[1745618545585,1.26926478,600.99,599.2,1.43903021]
[1745618545782,1.26926478,600.99,599.21,0.30596167]
[1745618546082,1.26926478,600.99,599.22,0.30596167]
[1745618546381,1.26926478,600.99,599.23,0.30596167]
[1745618546588,1.26926478,600.99,599.24,0.30596167]
[1745618546788,1.26926478,600.99,599.25,0.30596167]
[1745618546988,1.26926478,600.99,599.26,0.30596167]
[1745618547184,1.26926478,600.99,599.21,0.30596167]
[1745618547389,1.26926478,600.99,599.22,0.30596167]
[1745618547590,1.26926478,600.94,599.23,0.30596167]
[1745618547787,1.26926478,600.94,599.24,0.30596167]
[1745618548089,1.26926478,600.94,599.25,0.30596167]
[1745618548389,1.26926478,600.94,599.26,0.30596167]
[1745618548589,1.26926478,600.94,599.27,0.30596167]
[1745618548885,1.26926478,600.94,599.28,0.30596167]
[1745618549090,1.26926478,600.94,599.21,0.30596167]
[1745618549384,1.26926478,600.94,599.22,0.30596167]
[1745618549588,1.26926478,600.94,599.23,0.30596167]
[1745618549791,1.26926478,600.94,599.24,0.30596167]
[1745618549991,1.26926478,600.95,599.25,0.30596167]
[1745618550192,1.26926478,600.95,599.26,0.30596167]
[1745618550387,1.26926478,600.95,599.27,0.30596167]
[1745618550592,1.26926478,600.95,599.2,1.43903021]
[1745618550789,1.26926478,600.95,599.21,0.30597723]
[1745618551089,1.26926478,600.95,599.22,0.30597723]
[1745618551293,1.26926478,600.95,599.23,0.30597723]
[1745618551490,1.26926478,600.95,599.24,0.30597723]
[1745618551695,1.26926478,600.76,599.25,0.30597723]
[1745618551895,1.26926478,600.76,599.26,0.30597723]
[1745618552096,1.26926478,600.76,599.2,1.149]
[1745618552097,1.26926478,600.76,599.27,0.30597723]
[1745618552298,1.26926478,600.76,599.2,1.149]
[1745618552598,1.26926478,600.76,599.21,0.3059807]
[1745618552797,1.26926478,600.76,599.22,0.3059807]
[1745618552998,1.26926478,600.76,599.23,0.3059807]
[1745618553298,1.26926478,600.76,599.24,0.3059807]
[1745618553498,1.26926478,600.79,599.25,0.3059807]
[1745618553697,1.26926478,600.79,599.26,0.3059807]
[1745618553994,1.26926478,600.79,599.27,0.3059807]
[1745618554198,1.26926478,600.79,599.28,0.3059807]
[1745618554499,1.26926478,600.79,599.29,0.3059807]
[1745618554693,1.26926478,600.79,599.3,0.3059807]
[1745618554892,1.26926478,600.79,599.31,0.3059807]
[1745618555092,1.26926478,600.79,599.32,0.3059807]
[1745618555296,1.26926478,600.79,599.33,0.3059807]
[1745618555495,1.26926478,600.79,599.34,0.3059807]
[1745618555698,1.26926478,600.79,599.35,0.3059807]
[1745618555999,1.26926478,600.8,599.36,0.3059807]
[1745618556199,1.26926478,600.8,599.25,0.29006526]
[1745618556396,1.26926478,600.8,599.26,0.3059807]
[1745618556594,1.26926478,600.8,599.27,0.3059807]
[1745618556803,1.26926478,600.8,599.28,0.3059807]
[1745618557001,1.26926478,600.8,599.29,0.3059807]
[1745618557299,1.26926478,600.8,599.25,0.29006526]
[1745618557300,1.26926478,600.8,599.3,0.3059807]
[1745618557496,1.26926478,600.8,599.31,0.3059807]
[1745618557697,1.26926478,600.83,599.32,0.3059807]
[1745618557897,1.26926478,600.83,599.2,1.149]
[1745618557898,1.26926478,600.83,599.33,0.3059807]
[1745618558096,1.26926478,600.83,599.34,0.3059807]
[1745618558301,1.26926478,600.83,599.35,0.3059807]
[1745618558498,1.26926478,600.83,599.36,0.3059807]
[1745618558698,1.26926478,600.83,599.37,0.3059807]
[1745618558895,1.26926478,600.83,599.38,0.3059807]
[1745618559096,1.26926478,600.83,599.21,0.3059807]
[1745618559396,1.26926478,600.83,599.22,0.3059807]
[1745618559601,1.26926478,600.83,599.23,0.3059807]
[1745618559797,1.26926478,600.83,599.24,0.3059807]
[1745618559998,1.26926478,600.83,599.25,0.3059807]
[1745618560195,1.26926478,600.83,599.26,0.3059807]
[1745618560397,1.26926478,600.83,599.14,1.0591997]
[1745618560701,1.26926478,600.8,599.24,0.29006768]
[1745618560901,1.26926478,600.8,599.25,0.30596405]
[1745618561101,1.26926478,600.8,599.26,0.30596405]
[1745618561396,1.26926478,600.8,599.27,0.30596405]
[1745618561600,1.26926478,600.8,599.28,0.30596405]
[1745618561800,1.26926478,600.8,599.29,0.30596405]
[1745618562000,1.26926478,600.8,599.25,0.29007131]
[1745618562201,1.26926478,600.8,599.26,0.30596298]
[1745618562401,1.26926478,600.8,599.27,0.30596298]
[1745618562602,1.26926478,600.8,599.28,0.30596298]
[1745618562802,1.26926478,600.8,599.29,0.30596298]
[1745618562998,1.26926478,600.8,599.3,0.30596298]
[1745618563302,1.26926478,600.8,599.31,0.30596298]
[1745618563502,1.26926478,600.8,599.32,0.30596298]
[1745618563700,1.26926478,600.8,599.27,1.043]
[1745618564003,2.16253272,601.32,599.27,1.043]
[1745618564004,1.26926478,600.77,599.28,0.30596221]
[1745618564197,1.26926478,600.77,599.29,0.30596221]
[1745618564403,1.26926478,600.77,599.3,0.30596221]
[1745618564598,1.26926478,600.77,599.31,0.30596221]
[1745618564802,1.26926478,600.77,599.32,0.30596221]
[1745618564999,1.26926478,600.77,599.33,0.30596221]
[1745618565203,1.26926478,600.77,599.27,1.043]
[1745618565404,1.26926478,600.77,599.28,0.30596352]
[1745618565604,1.26926478,600.77,599.29,0.30596352]
[1745618565805,1.26926478,600.77,599.28,0.30596352]
[1745618566005,1.26926478,600.77,599.29,0.30596352]
[1745618566305,1.26926478,600.77,599.3,0.30596352]
[1745618566499,1.26926478,600.8,599.28,0.30596352]
[1745618566804,1.26926478,600.8,599.27,1.043]
[1745618567004,1.26926478,600.8,599.28,0.3059598]
[1745618568507,1.26926478,600.8,599.27,1.043]
[1745618568702,1.26926478,600.8,599.29,0.3059584]
[1745618568908,1.26926478,600.8,599.3,0.3059584]
[1745618569206,1.26926478,600.8,599.31,0.3059584]
[1745618569507,0.29005559,600.92,599.32,0.3059584]
[1745618569708,0.29005559,600.92,599.28,0.3059584]
[1745618569901,1.26926478,601.02,599.29,0.3059584]
[1745618570101,1.26926478,601.02,599.28,0.3059584]
[1745618570403,1.26926478,601.02,599.29,0.3059584]
[1745618570606,1.26926478,601.02,599.28,0.3059584]
[1745618570808,1.26926478,601.02,599.29,0.3059584]
[1745618571000,1.26926478,601.02,599.3,0.3059584]
[1745618571201,0.290029,601.01,599.28,0.3059584]
[1745618571406,0.290029,601.01,599.29,0.3059584]
[1745618571605,0.290029,601.01,599.28,0.3059584]
[1745618571807,0.290029,601.01,599.29,0.3059584]
[1745618572001,0.290029,601.01,599.28,0.3059584]
[1745618572202,0.290029,601.01,599.3,0.3059584]
[1745618572401,0.290029,601.01,599.31,0.3059584]
[1745618572604,0.290029,601.01,599.32,0.3059584]
[1745618572805,0.290029,601.01,599.28,0.3059584]
[1745618573002,0.290029,601.01,599.29,0.3059584]
[1745618573201,0.290029,601.01,599.28,0.3059584]
[1745618573406,0.290029,601.01,599.27,1.333029]
[1745618573607,0.290029,601.01,599.28,0.30595962]
[1745618575207,0.290029,601.01,599.27,1.333029]
[1745618575408,0.290029,601.01,599.28,0.30595806]
[1745618575907,1.26926478,601.15,599.28,0.30595806]
[1745618576208,1.26926478,601.16,599.28,0.30595806]
[1745618576808,1.26926478,601.16,599.27,1.043]
[1745618577010,1.26926478,601.16,599.28,0.30595902]
[1745618577203,0.29001208,601.15,599.28,0.30595902]
[1745618578311,1.26926478,601.06,599.29,0.30595902]
[1745618578605,1.26926478,601.06,599.3,0.30595871]
[1745618578806,1.26926478,601.06,599.31,0.30595871]
[1745618579010,1.26926478,601.06,599.32,0.30595871]
[1745618579311,1.26926478,601.06,599.33,0.30595871]
[1745618579515,1.26926478,601.06,599.28,0.30595871]
[1745618579707,1.26926478,601.06,599.29,0.30595871]
[1745618579907,0.29002417,601.05,599.3,0.30595871]
[1745618580107,0.29002417,601.05,599.31,0.30595871]
[1745618580312,0.29002417,601.05,599.32,0.30595871]
[1745618580613,0.29002417,601.05,599.33,0.30595871]
[1745618580813,0.29002417,601.05,599.34,0.30595871]
[1745618581008,1.26926478,600.89,599.3,0.30595871]
[1745618581312,1.26926478,600.89,599.29,0.29002417]
[1745618581508,1.26926478,600.89,599.3,0.30595908]
[1745618582111,1.26926478,600.89,599.28,0.30595908]
[1745618582412,1.26926478,600.89,599.29,0.30595908]
[1745618582612,1.26926478,600.89,599.28,0.30595908]
[1745618582814,1.26926478,600.89,599.29,0.30595908]
[1745618583110,0.29004472,600.92,599.3,0.30595908]
[1745618584316,0.29004472,600.92,599.29,0.29004472]
[1745618584514,0.29004472,600.92,599.3,0.305959]
[1745618584911,1.26926478,601.04,599.3,0.305959]
[1745618585214,1.26926478,601.04,599.31,0.305959]
[1745618585411,1.26926478,601.04,599.28,0.305959]
[1745618585713,1.26926478,601.04,599.27,1.043]
[1745618585714,1.26926478,601.01,599.29,0.305959]
[1745618585907,1.26926478,601.01,599.28,0.305959]
[1745618586113,1.26926478,601.01,599.29,0.28990457]
[1745618586314,1.26926478,601.01,599.3,0.305959]
[1745618586912,1.26926478,601.01,599.28,0.305959]
[1745618587811,2.16253272,601.34,599.28,0.305959]
[1745618587812,1.26926478,601.0,599.28,0.305959]
[1745618588314,1.55931433,601.0,599.28,0.305959]
[1745618590722,1.55931433,601.0,599.27,1.043]
[1745618590917,1.26926478,601.0,599.28,0.30602879]
[1745618591218,0.29006285,600.99,599.28,0.30602879]
[1745618594021,1.26926478,601.21,599.27,1.043]
[1745618594223,1.26926478,601.21,599.28,0.30602879]
[1745618594419,0.29003746,601.2,599.28,0.30602879]
[1745618595223,1.26926478,601.14,599.28,0.30602879]
[1745618595623,1.26926478,601.14,599.27,1.043]
[1745618595819,1.26926478,601.14,599.28,0.3060293]
[1745618597324,1.26926478,601.14,599.27,1.043]
[1745618597524,1.26926478,601.14,599.28,0.30603452]
[1745618597720,0.29005076,601.13,599.28,0.30603452]
[1745618600030,1.26926478,601.27,599.28,0.30603452]
[1745618600430,0.29003263,601.26,599.28,0.30603452]
[1745618602236,0.29003263,601.26,599.29,0.30604428]
[1745618602436,0.29003263,601.26,599.28,0.30604428]
[1745618602735,0.29003263,601.26,599.29,0.30604428]
[1745618602931,1.26926478,601.32,599.3,0.30604428]
[1745618603132,1.26926478,601.32,598.48,0.30604428]
[1745618603336,0.29004109,601.25,599.18,0.29004109]
[1745618603530,0.29004109,601.25,599.19,0.30604428]
[1745618603731,0.29004109,601.25,599.2,0.30604428]
[1745618603931,0.29004109,601.25,598.49,0.30604428]
[1745618604132,0.29004109,601.25,598.5,0.30604428]
[1745618604334,0.29004109,601.25,598.51,0.30604428]
[1745618604532,0.29004109,601.25,598.52,0.30604428]
[1745618604832,0.29004109,601.25,598.53,0.30604428]
[1745618605034,0.29004109,601.25,598.54,0.30604428]
[1745618605236,0.29004109,601.25,598.55,0.30604428]
[1745618605536,0.29004109,601.25,598.56,0.30604238]
[1745618605736,0.29004109,601.25,598.57,0.30604238]
[1745618605937,1.26926478,601.26,598.58,0.30604238]
[1745618606139,1.26926478,601.26,598.59,0.30604238]
[1745618606331,1.26926478,601.26,598.6,0.30604238]
[1745618606532,0.29012572,601.25,598.61,0.30604238]
[1745618606735,0.29012572,601.25,598.62,0.30604238]
[1745618606935,0.29012572,601.25,598.63,0.30604238]
[1745618607136,0.29012572,601.25,598.64,0.30604238]
[1745618607337,0.29012572,601.25,598.65,0.30604238]
[1745618607638,0.29012572,601.25,598.66,0.30604238]
[1745618607835,0.29012572,601.25,598.67,0.30604238]
[1745618608035,0.29012572,601.25,598.68,0.30604238]
[1745618608235,0.29012572,601.25,598.69,0.30604238]
[1745618608437,0.29012572,601.25,598.7,0.30604238]
[1745618608736,0.29012572,601.25,598.71,0.30604238]
[1745618608937,1.26926478,601.26,598.72,0.30604238]
[1745618609134,1.26926478,601.26,598.55,1.085]
[1745618609135,1.26926478,601.1,598.73,0.30604238]
[1745618609335,1.26926478,601.1,598.74,0.30604238]
[1745618609536,1.26926478,601.1,598.75,0.30604238]
[1745618609831,1.26926478,601.1,598.61,0.29012572]
[1745618609832,1.26926478,601.1,598.76,0.30604238]
[1745618610031,1.26926478,601.1,598.77,0.30604238]
[1745618610237,1.26926478,601.1,598.78,0.30604238]
[1745618610438,1.26926478,601.1,598.79,0.30604238]
[1745618610635,1.26926478,601.1,598.8,0.30604238]
[1745618611037,1.26926478,601.1,598.81,0.30604238]
[1745618611237,1.26926478,601.1,598.82,0.30604238]
[1745618611538,1.26926478,601.1,598.83,0.30604238]
[1745618611738,1.26926478,601.1,598.84,0.30604238]
[1745618611937,1.26926478,601.1,598.85,0.30604238]
[1745618612137,1.26926478,601.1,598.86,0.30604238]
[1745618612332,0.29015717,601.09,598.7,0.29015717]
[1745618612537,0.29015717,601.09,598.71,0.30604238]
[1745618612740,1.26926478,601.08,598.72,0.30604238]
[1745618612939,1.26926478,601.08,598.73,0.30604238]
[1745618613137,1.26926478,601.08,598.74,0.30604238]
[1745618613341,1.26926478,601.08,598.7,0.29015717]
[1745618613542,1.26926478,601.08,598.71,0.30610051]
[1745618613743,1.26926478,601.08,598.72,0.30610051]
[1745618614046,1.26926478,601.08,598.73,0.30610051]
[1745618614245,1.26926478,601.08,598.74,0.30610051]
[1745618614440,1.26926478,601.08,598.75,0.30610051]
[1745618614645,1.26926478,601.08,598.76,0.30610051]
[1745618614845,1.26926478,601.08,598.77,0.30610051]
[1745618615046,1.26926478,601.08,598.78,0.30610051]
[1745618615240,1.26926478,601.08,598.79,0.30610051]
[1745618615444,1.26926478,601.08,598.55,1.085]
[1745618615445,1.26926478,601.03,598.8,0.30610051]
[1745618615845,1.26926478,601.03,598.81,0.30610051]
[1745618616046,1.26926478,601.03,598.82,0.30610051]
[1745618616248,1.26926478,601.03,598.83,0.30610051]
[1745618616545,1.26926478,601.03,598.84,0.30610051]
[1745618616841,1.26926478,601.03,598.85,0.30610051]
[1745618617046,1.26926478,601.03,598.86,0.30610051]
[1745618617240,1.26926478,601.03,598.87,0.30610051]
[1745618617440,1.26926478,601.03,598.88,0.30610051]
[1745618617642,1.26926478,601.03,598.74,0.30610051]
[1745618617843,1.26926478,601.03,598.75,0.30610051]
[1745618618043,1.26926478,601.03,598.76,0.30610051]
[1745618618246,1.26926478,601.03,598.55,1.085]
[1745618618447,0.29014144,601.02,598.74,0.29014144]
[1745618618647,0.29014144,601.02,598.75,0.30609]
[1745618618849,0.29014144,601.02,598.76,0.30609]
[1745618619051,0.29014144,601.02,598.77,0.30609]
[1745618619249,0.29014144,601.02,598.78,0.30609]
[1745618619446,0.29014144,601.02,598.79,0.30609]
[1745618619650,0.29014144,601.02,598.8,0.30609]
[1745618619844,0.29014144,601.02,598.55,1.085]
[1745618620052,1.26926478,601.0,598.76,0.29016322]
[1745618620245,1.26926478,601.0,598.77,0.30609272]
[1745618620450,1.26926478,601.0,598.78,0.30609272]
[1745618620648,1.26926478,601.0,598.79,0.30609272]
[1745618620853,1.26926478,601.0,598.8,0.30609272]
[1745618621152,1.26926478,601.0,598.81,0.30609272]
[1745618621453,1.26926478,601.0,598.57,1.0591997]
[1745618621654,1.26926478,601.0,598.58,0.30609169]
[1745618621853,0.29016443,600.99,598.78,0.29016443]
[1745618622051,0.29016443,600.99,598.79,0.30609169]
[1745618622250,1.26926478,600.82,598.8,0.30609169]
[1745618622454,1.26926478,600.82,598.81,0.30609169]
[1745618622654,1.26926478,600.82,598.82,0.30609169]
[1745618622849,1.26926478,600.82,598.83,0.30609169]
[1745618623052,1.26926478,600.82,598.84,0.30609169]
[1745618623251,1.26926478,600.82,598.85,0.30609169]
[1745618623452,1.26926478,600.82,598.86,0.30609169]
[1745618623654,1.26926478,600.82,598.87,0.30609169]
[1745618623856,1.26926478,600.82,598.88,0.30609169]
[1745618624155,1.26926478,600.82,598.89,0.30609169]
[1745618624355,1.26926478,600.82,598.9,0.30609169]
[1745618624550,1.26926478,600.82,598.91,0.30609169]
[1745618624751,0.29017168,600.81,598.92,0.30609169]
[1745618624950,0.29017168,600.81,598.93,0.30609169]
[1745618625154,0.29017168,600.81,598.94,0.30609169]
[1745618625355,0.29017168,600.81,598.95,0.30609169]
[1745618625556,0.29017168,600.81,598.96,0.30609169]
[1745618625757,1.26926478,600.73,598.97,0.30609169]
[1745618625957,1.26926478,600.73,598.98,0.30609169]
[1745618626257,1.26926478,600.73,598.99,0.30609169]
[1745618626556,1.26926478,600.73,599.0,0.30609169]
[1745618626858,1.26926478,600.73,599.01,0.30609169]
[1745618627057,1.26926478,600.73,599.02,0.30609169]
[1745618627356,0.29017048,600.72,599.03,0.30609169]
[1745618627553,0.29017048,600.72,599.04,0.30609169]
[1745618627856,0.29017048,600.72,598.91,0.29017048]
[1745618628159,0.29017048,600.72,598.92,0.30608622]
[1745618628457,0.29017048,600.72,598.91,1.37217048]
[1745618628458,0.29017048,600.72,598.93,0.30608622]
[1745618628756,0.29017048,600.72,598.94,0.30608622]
[1745618628951,0.29017048,600.72,598.95,0.30608622]
[1745618629152,0.29017048,600.72,598.96,0.30608622]
[1745618629355,0.29017048,600.72,598.97,0.30608622]
[1745618629555,0.29017048,600.72,598.98,0.30607681]
[1745618629753,0.29017048,600.72,598.99,0.30607681]
[1745618629957,1.26926478,600.75,599.0,0.30607681]
[1745618630152,0.29015354,600.72,599.01,0.30607681]
[1745618630357,0.29015354,600.72,599.02,0.30607681]
[1745618630550,0.29015354,600.72,599.03,0.30607681]
[1745618630755,0.29015354,600.72,599.04,0.30607681]
[1745618631052,0.29015354,600.72,598.94,0.29015354]
[1745618631258,0.29015354,600.72,598.95,0.30607654]
[1745618631557,0.29015354,600.72,598.96,0.30607654]
[1745618631755,0.29015354,600.72,598.97,0.30607654]
[1745618631951,0.29015354,600.72,598.98,0.30607654]
[1745618632152,0.29015354,600.72,598.99,0.30607654]